bitfinex-derivatives/quotes_SOLF0:USTF0_20250516
["timestamp","ask_amount","ask_price","bid_price","bid_amount"]
[1747390005594,1.8791,172.38,172.28,59.64]
[1747390005788,1.8791,172.38,172.29,59.62]
[1747390006087,5.7998,172.37,172.34,5.8004]
[1747390007293,5.7999,172.36,172.34,5.8004]
[1747390007493,5.7999,172.36,172.33,5.8009]
[1747390008294,1.8791,172.38,172.32,5.8011]
[1747390008494,1.8791,172.38,172.28,59.62]
[1747390008693,1.8791,172.38,172.26,1.9998]
[1747390008896,1.8791,172.38,172.26,61.6198]
[1747390009201,5.8021,172.3,172.27,5.8028]
[1747390009402,59.62,172.34,172.27,5.8028]
[1747390009799,59.62,172.34,172.28,5.8025]
[1747390010204,5.802,172.3,172.28,5.8025]
[1747390010499,59.62,172.34,172.26,59.62]
[1747390010701,63.2703,172.34,172.21,16.49200149]
[1747390010895,63.2703,172.34,172.24,5.8036]
[1747390011299,5.8031,172.27,172.24,5.8036]
[1747390011496,63.2703,172.34,172.23,5.8041]
[1747390011697,5.8035,172.26,172.23,5.8041]
[1747390012691,5.8035,172.26,172.22,119.24]
[1747390012896,59.62,172.3,172.22,59.62]
[1747390013197,61.6201,172.29,172.18,501.58]
[1747390013405,5.8046,172.22,172.19,5.8053]
[1747390013796,5.8049,172.21,172.18,567.0058]
[1747390013997,61.6201,172.29,172.18,561.2]
[1747390015506,5.8038,172.25,172.22,5.8045]
[1747390016007,5.804,172.24,172.21,5.8048]
[1747390016305,61.6201,172.29,172.18,561.2]
[1747390016810,5.8043,172.23,172.2,5.8051]
[1747390017102,61.6201,172.29,172.18,59.62]
[1747390017308,5.8052,172.21,172.18,65.4258]
[1747390017504,5.8052,172.21,172.17,59.62]
[1747390017505,59.62,172.25,172.15,59.62]
[1747390017802,5.8057,172.19,172.16,5.8065]
[1747390018705,5.8053,172.2,172.16,5.8065]
[1747390019007,5.8053,172.2,172.15,65.4269]
[1747390019205,5.8059,172.18,172.15,59.62]
[1747390019411,59.64,172.23,172.14,59.64]
[1747390019701,5.8062,172.18,172.14,59.64]
[1747390019905,59.62,172.21,172.14,59.64]
[1747390020108,59.62,172.21,172.14,65.447]
[1747390020309,5.8062,172.18,172.14,65.447]
[1747390020505,59.62,172.21,172.14,59.64]
[1747390020808,59.62,172.21,172.14,5.8072]
[1747390021612,59.62,172.21,172.15,5.8069]
[1747390021808,59.62,172.21,172.12,59.64]
[1747390022208,59.62,172.21,172.16,5.8064]
[1747390022706,5.8055,172.2,172.12,59.64]
[1747390024516,65.4251,172.21,172.12,59.64]
[1747390024708,65.4251,172.21,172.17,5.806]
[1747390025212,59.62,172.21,172.17,5.806]
[1747390026417,59.62,172.21,172.18,5.8058]
[1747390026626,59.62,172.21,172.12,59.64]
[1747390027115,59.62,172.21,172.18,5.8057]
[1747390027310,1.8402,172.22,172.18,5.8057]
[1747390027817,7.6449,172.22,172.12,59.64]
[1747390028017,7.6449,172.22,172.12,70.55310149]
[1747390028018,1.8402,172.22,172.12,70.55310149]
[1747390028211,59.64,172.23,172.12,70.55310149]
[1747390029318,65.4445,172.23,172.12,70.55310149]
[1747390029820,5.8047,172.22,172.12,70.55310149]
[1747390030719,5.8044,172.23,172.19,5.8054]
[1747390031212,59.62,172.24,172.19,5.8054]
[1747390031421,5.8046,172.22,172.19,5.8054]
[1747390032318,5.8046,172.22,172.15,6.82764532]
[1747390032319,59.62,172.25,172.15,59.66]
[1747390032521,1.9152,172.21,172.15,59.66]
[1747390032722,61.5352,172.21,172.1,618.02674011]
[1747390032912,61.5352,172.21,172.11,59.66]
[1747390033713,5.8068,172.16,172.13,5.8075]
[1747390035216,61.5352,172.21,172.13,5.8075]
[1747390035520,61.5352,172.21,172.1,677.62674011]
[1747390035717,61.5352,172.21,172.1,176.16674011]
[1747390036015,61.5352,172.21,172.1,5.8083]
[1747390036215,11.611,172.2,172.04,59.6]
[1747390036612,5.8089,172.1,172.07,5.8095]
[1747390037315,59.62,172.13,172.04,119.22]
[1747390037520,59.62,172.14,172.04,119.22]
[1747390038016,59.62,172.14,172.09,5.8089]
[1747390038321,59.62,172.14,172.04,119.22]
[1747390038520,59.62,172.14,172.03,1.8608]
[1747390038521,61.526,172.14,172.03,1.8608]
[1747390038715,1.8829,172.13,172.03,59.6]
[1747390039015,5.8092,172.09,172.03,59.6]
[1747390039216,1.8829,172.13,172.03,59.6]
[1747390039823,5.8086,172.1,172.06,5.81]
[1747390040021,5.8086,172.1,172.03,59.6]
[1747390040422,5.8091,172.09,172.06,5.8097]
[1747390041531,5.8088,172.1,172.06,5.8097]
[1747390041826,1.8829,172.13,172.03,59.6]
[1747390042224,61.526,172.14,172.09,5.8088]
[1747390042823,59.6,172.15,172.07,59.62]
[1747390043231,59.62,172.16,172.07,59.62]
[1747390044031,59.62,172.16,172.07,61.6223]
[1747390044223,61.5304,172.18,172.08,10.9322596]
[1747390044420,1.9104,172.18,172.08,10.9322596]
[1747390044732,63.3286,172.19,172.08,10.9322596]
[1747390045027,5.8064,172.17,172.14,5.8072]
[1747390045226,5.8064,172.17,172.08,10.9322596]
[1747390045227,59.62,172.19,172.11,119.24]
[1747390045633,5.8062,172.18,172.14,5.807]
[1747390045830,5.8062,172.18,172.11,119.24]
[1747390046228,5.8064,172.17,172.14,5.807]
[1747390046828,5.806,172.18,172.14,5.807]
[1747390047232,5.806,172.18,172.15,5.8069]
[1747390048732,5.8064,172.17,172.14,5.8072]
[1747390048932,119.24,172.21,172.11,119.24]
[1747390050133,5.8062,172.18,172.14,5.8073]
[1747390050433,119.24,172.21,172.14,5.8073]
[1747390050634,5.8069,172.16,172.13,5.8076]
[1747390051733,5.807,172.15,172.12,5.8079]
[1747390051934,59.6,172.17,172.09,59.62]
[1747390052333,5.8077,172.13,172.1,5.8084]
[1747390052727,5.8077,172.13,172.09,59.62]
[1747390053136,119.22,172.17,172.09,59.62]
[1747390053329,3.8885,172.22,172.09,59.62]
[1747390053529,5.8066,172.17,172.13,5.8073]
[1747390053836,119.22,172.19,172.13,5.8073]
[1747390055139,5.807,172.15,172.12,5.8078]
[1747390055534,119.22,172.19,172.07,10.9322596]
[1747390055732,119.22,172.19,172.11,5.8081]
[1747390055936,5.8076,172.13,172.08,59.62]
[1747390056135,5.8076,172.13,172.1,5.8085]
[1747390057344,5.808,172.12,172.1,5.8085]
[1747390057542,119.22,172.19,172.1,5.8085]
[1747390057948,5.8079,172.13,172.1,5.8085]
[1747390058137,5.8079,172.13,172.11,5.8083]
[1747390058847,5.8079,172.13,172.1,5.8085]
[1747390060146,5.808,172.12,172.1,5.8085]
[1747390060453,5.808,172.12,172.09,5.8088]
[1747390060741,5.8085,172.11,172.07,59.62]
[1747390061148,5.8085,172.11,172.08,5.8093]
[1747390061550,5.8081,172.12,172.07,59.62]
[1747390061750,5.8081,172.12,172.09,5.8088]
[1747390064453,119.22,172.19,172.09,6.83447839]
[1747390064746,63.5085,172.22,172.12,6.83447839]
[1747390064951,63.5085,172.22,172.15,6.83447839]
[1747390065151,3.8885,172.22,172.15,6.83447839]
[1747390065454,5.8047,172.22,172.18,5.8057]
[1747390065652,5.8047,172.22,172.15,6.83447839]
[1747390065839,5.8047,172.22,172.18,5.8057]
[1747390066044,1.9297,172.24,172.15,6.83447839]
[1747390066246,1.9297,172.24,172.13,119.16]
[1747390066450,1.9297,172.24,172.12,8.75797839]
[1747390066650,1.9297,172.24,172.12,127.91797839]
[1747390066851,59.58,172.23,172.15,5.8069]
[1747390067051,5.8061,172.18,172.15,5.8069]
[1747390067657,5.8064,172.17,172.14,5.8073]
[1747390067950,5.8064,172.17,172.12,125.99447839]
[1747390068154,59.58,172.21,172.12,125.99447839]
[1747390068550,5.8057,172.19,172.12,125.99447839]
[1747390068755,59.58,172.21,172.12,125.99447839]
[1747390069353,5.806,172.18,172.15,5.8067]
[1747390069552,119.16,172.21,172.15,5.8067]
[1747390069753,5.8058,172.19,172.12,119.16]
[1747390070557,5.8058,172.19,172.15,5.8066]
[1747390070858,119.16,172.21,172.12,119.16]
[1747390071058,119.16,172.21,172.14,5.8071]
[1747390071254,119.16,172.21,172.08,119.16]
[1747390071460,5.8078,172.13,172.08,119.16]
[1747390071659,5.8078,172.13,172.1,5.8084]
[1747390071855,59.58,172.17,172.08,119.16]
[1747390072757,65.3864,172.17,172.13,5.8074]
[1747390073260,59.58,172.17,172.15,5.8069]
[1747390073462,63.5389,172.22,172.12,119.16]
[1747390073658,63.5389,172.22,172.13,59.58]
[1747390073962,5.805,172.21,172.18,5.8057]
[1747390074262,3.9589,172.22,172.13,59.58]
[1747390074761,9.7637,172.22,172.18,5.8057]
[1747390074954,3.9589,172.22,172.13,59.58]
[1747390075151,5.8055,172.2,172.16,5.8064]
[1747390075356,3.9589,172.22,172.13,59.58]
[1747390075959,1.9654,172.22,172.13,59.58]
[1747390076466,7.7703,172.22,172.18,5.8057]
[1747390077065,1.9654,172.22,172.13,59.58]
[1747390077865,5.8052,172.21,172.13,59.58]
[1747390078465,7.7701,172.22,172.13,59.58]
[1747390078773,1.9654,172.22,172.13,59.58]
[1747390079064,5.8056,172.19,172.16,5.8064]
[1747390079253,1.9654,172.22,172.16,5.8064]
[1747390079457,1.9654,172.22,172.13,59.58]
[1747390079664,5.8055,172.2,172.15,5.8067]
[1747390079863,1.9654,172.22,172.13,59.58]
[1747390080165,1.9654,172.22,172.13,59.56]
[1747390080368,1.9654,172.22,172.14,5.8071]
[1747390080566,59.56,172.21,172.14,5.8071]
[1747390080767,59.56,172.2,172.14,5.8071]
[1747390081069,59.56,172.2,172.1,59.56]
[1747390081462,59.56,172.2,172.13,5.8076]
[1747390082068,5.807,172.15,172.13,5.8076]
[1747390082269,59.56,172.2,172.13,5.8076]
[1747390082570,59.56,172.2,172.14,5.8072]
[1747390083272,5.8066,172.17,172.14,5.8072]
[1747390083471,59.56,172.2,172.13,5.8075]
[1747390083672,59.56,172.2,172.1,59.56]
[1747390084073,5.8072,172.15,172.12,5.8078]
[1747390085273,5.8068,172.16,172.13,5.8075]
[1747390086372,5.807,172.15,172.12,5.8079]
[1747390086968,59.56,172.2,172.1,5.8085]
[1747390087681,5.8078,172.13,172.1,5.8085]
[1747390087871,59.56,172.16,172.11,5.8082]
[1747390088379,59.56,172.16,172.08,59.58]
[1747390088781,5.8082,172.12,172.08,59.58]
[1747390089076,5.8082,172.12,172.09,5.809]
[1747390089273,5.8082,172.12,172.08,59.58]
[1747390089983,5.8077,172.13,172.08,59.58]
[1747390090978,1.8316,172.15,172.12,5.8079]
[1747390091290,1.8316,172.15,172.08,59.58]
[1747390091582,5.8076,172.14,172.11,5.8081]
[1747390092081,1.8316,172.15,172.08,119.16]
[1747390092573,5.8075,172.14,172.11,5.8082]
[1747390093275,1.8316,172.15,172.11,5.8082]
[1747390093276,5.8077,172.13,172.11,5.8082]
[1747390093679,5.8077,172.13,172.1,5.8085]
[1747390094071,59.56,172.16,172.08,119.16]
[1747390095278,5.8074,172.14,172.1,5.8085]
[1747390095479,5.8074,172.14,172.08,119.16]
[1747390096074,5.8074,172.14,172.11,5.8081]
[1747390096780,5.8071,172.15,172.12,5.8079]
[1747390097277,5.8065,172.17,172.14,5.8072]
[1747390097478,59.56,172.18,172.08,125.99534217]
[1747390097782,5.8047,172.22,172.14,6.83534217]
[1747390097981,59.56,172.24,172.15,119.12]
[1747390098171,59.56,172.25,172.15,119.12]
[1747390098376,119.12,172.25,172.15,119.12]
[1747390099387,5.8052,172.21,172.17,5.806]
[1747390099787,119.12,172.25,172.17,5.806]
[1747390099975,5.8055,172.2,172.17,5.806]
[1747390100175,119.12,172.25,172.15,119.12]
[1747390100481,5.806,172.18,172.15,59.56]
[1747390100880,59.56,172.21,172.15,59.56]
[1747390101076,5.8058,172.19,172.15,59.56]
[1747390101281,59.56,172.21,172.15,59.56]
[1747390101779,5.8051,172.21,172.18,5.8058]
[1747390102084,59.56,172.24,172.15,59.56]
[1747390102784,5.8045,172.23,172.16,59.56]
[1747390102981,5.8045,172.23,172.19,5.8053]
[1747390103284,5.8045,172.23,172.16,59.56]
[1747390104281,5.8041,172.24,172.16,59.56]
[1747390104477,59.56,172.25,172.16,59.56]
[1747390104678,59.56,172.25,172.2,5.8051]
[1747390104985,59.56,172.25,172.16,59.56]
[1747390105685,5.8042,172.24,172.2,5.8051]
[1747390107484,5.8042,172.24,172.21,5.8049]
[1747390108786,65.3637,172.25,172.22,5.8045]
[1747390109081,59.54,172.27,172.19,59.54]
[1747390109283,65.2219,172.28,172.19,59.54]
[1747390109489,59.54,172.31,172.2,59.54]
[1747390109789,119.08,172.31,172.2,61.4208]
[1747390110387,5.8038,172.25,172.2,61.4208]
[1747390110581,119.08,172.31,172.2,59.54]
[1747390110980,119.08,172.31,172.2,65.345]
[1747390111280,119.08,172.31,172.2,59.54]
[1747390111486,5.804,172.24,172.21,5.8047]
[1747390112083,5.804,172.24,172.2,59.54]
[1747390112585,59.54,172.27,172.18,1.8424]
[1747390112783,59.54,172.27,172.2,5.805]
[1747390113187,119.08,172.27,172.16,59.54]
[1747390113385,5.5631,172.26,172.16,59.54]
[1747390113890,5.8058,172.19,172.16,65.3464]
[1747390114190,59.54,172.23,172.16,59.54]
[1747390114491,5.8053,172.2,172.16,59.54]
[1747390115089,5.8053,172.2,172.17,5.806]
[1747390115593,5.8056,172.19,172.17,5.806]
[1747390115790,5.8056,172.19,172.16,65.3465]
[1747390116492,119.08,172.23,172.13,501.72]
[1747390116795,119.08,172.23,172.04,119.06]
[1747390117092,5.8076,172.14,172.1,5.8085]
[1747390117287,59.54,172.17,172.1,5.8085]
[1747390117488,59.54,172.17,172.09,5.8089]
[1747390117688,61.4233,172.17,172.08,59.54]
[1747390117887,65.2503,172.17,172.08,59.54]
[1747390118091,65.2503,172.17,172.08,65.3492]
[1747390118596,65.2503,172.17,172.1,5.8087]
[1747390118810,65.2503,172.17,172.08,59.54]
[1747390119293,5.8073,172.14,172.12,5.8079]
[1747390120092,5.8073,172.14,172.11,5.8082]
[1747390120498,5.8077,172.13,172.08,59.54]
[1747390120797,5.8077,172.13,172.1,5.8084]
[1747390121592,5.8074,172.14,172.1,5.8084]
[1747390121789,5.8074,172.14,172.11,5.8082]
[1747390123398,5.8076,172.13,172.1,5.8085]
[1747390124193,5.8074,172.14,172.1,5.8085]
[1747390124697,65.2503,172.17,172.1,5.8085]
[1747390124899,59.54,172.18,172.08,59.54]
[1747390125198,5.8066,172.17,172.08,59.54]
[1747390125500,5.8066,172.17,172.09,6.83153673]
[1747390125990,5.806,172.18,172.09,6.83153673]
[1747390127595,5.8057,172.19,172.09,6.83153673]
[1747390127791,120.9154,172.21,172.09,6.83153673]
[1747390127996,120.9154,172.21,172.14,5.8071]
[1747390128294,120.9154,172.21,172.09,6.83153673]
[1747390128598,127.74693673,172.21,172.1,59.54]
[1747390130406,5.8072,172.15,172.1,59.54]
[1747390130705,120.9154,172.21,172.14,5.807]
[1747390130896,5.8065,172.17,172.14,5.807]
[1747390131203,120.9154,172.21,172.14,5.807]
[1747390131403,5.8068,172.16,172.13,5.8075]
[1747390131902,5.8067,172.16,172.1,59.54]
[1747390132295,59.54,172.19,172.1,59.54]
[1747390132707,59.54,172.19,172.13,5.8076]
[1747390132904,59.54,172.19,172.1,59.54]
[1747390133106,5.8065,172.17,172.14,5.8071]
[1747390133802,5.8067,172.16,172.13,5.8075]
[1747390134503,5.8064,172.17,172.14,5.8071]
[1747390134906,5.8067,172.16,172.14,5.8071]
[1747390135207,5.8067,172.16,172.13,5.8076]
[1747390136409,5.807,172.15,172.12,5.8079]
[1747390137007,5.8068,172.16,172.12,5.8079]
[1747390137194,5.8068,172.16,172.13,5.8076]
[1747390138905,59.54,172.19,172.11,59.54]
[1747390139106,59.54,172.19,172.11,66.37153673]
[1747390139507,5.8069,172.16,172.13,5.8074]
[1747390139809,59.54,172.19,172.11,6.83153673]
[1747390140002,59.54,172.19,172.12,5.8079]
[1747390140804,5.8071,172.15,172.12,5.8079]
[1747390141611,59.54,172.19,172.1,59.54]
[1747390142209,5.807,172.15,172.12,5.8078]
[1747390142410,59.54,172.19,172.1,59.54]
[1747390142911,5.8073,172.14,172.11,5.808]
[1747390143107,5.8073,172.14,172.1,59.54]
[1747390143308,59.54,172.19,172.1,59.54]
[1747390143512,5.8072,172.15,172.12,5.8077]
[1747390144017,59.54,172.19,172.11,5.8082]
[1747390144203,59.54,172.19,172.08,59.54]
[1747390144612,5.8082,172.12,172.09,5.8089]
[1747390144815,59.54,172.15,172.09,5.8089]
[1747390145005,59.54,172.15,172.08,59.54]
[1747390145713,5.8082,172.12,172.09,5.8089]
[1747390146114,63.4276,172.15,172.09,5.8089]
[1747390146414,5.8084,172.11,172.08,65.3491]
[1747390146610,63.4276,172.15,172.08,59.54]
[1747390147218,5.8082,172.12,172.09,5.8087]
[1747390148317,63.4276,172.15,172.05,59.54]
[1747390148523,63.4276,172.15,172.02,59.54]
[1747390148524,1.8328,172.14,172.02,59.54]
[1747390149019,5.8097,172.07,172.04,5.8105]
[1747390149416,59.56,172.1,172.02,59.54]
[1747390150222,59.56,172.1,172.06,5.8098]
[1747390150424,59.56,172.1,172.03,6.83153673]
[1747390150722,5.8091,172.09,172.05,5.81]
[1747390151121,5.8091,172.09,172.03,6.83153673]
[1747390151313,65.3688,172.1,172.03,6.83153673]
[1747390152122,5.8091,172.09,172.06,5.8098]
[1747390153023,65.3688,172.1,172.06,5.8098]
[1747390153224,59.56,172.1,172.06,5.8098]
[1747390153925,59.56,172.1,172.07,5.8097]
[1747390154326,59.6,172.13,172.07,5.8097]
[1747390154630,5.809,172.1,172.03,6.83153673]
[1747390154925,59.6,172.13,172.03,6.83153673]
[1747390155123,1.8328,172.14,172.06,6.83153673]
[1747390155315,1.8328,172.14,172.07,59.54]
[1747390156730,7.6404,172.14,172.11,5.8083]
[1747390157028,1.8328,172.14,172.07,59.54]
[1747390157424,1.8328,172.14,172.1,5.8086]
[1747390158029,5.8079,172.13,172.1,5.8086]
[1747390158217,1.8328,172.14,172.1,5.8086]
[1747390158928,5.8079,172.13,172.1,5.8086]
[1747390159226,1.8328,172.14,172.1,5.8086]
[1747390159426,5.808,172.13,172.1,5.8086]
[1747390159631,1.8328,172.14,172.09,5.8089]
[1747390159929,5.808,172.12,172.09,5.8089]
[1747390160231,1.8328,172.14,172.08,5.8092]
[1747390160534,5.8092,172.09,172.06,59.66]
[1747390160725,1.8328,172.14,172.06,59.66]
[1747390161122,5.8082,172.12,172.06,59.66]
[1747390161328,5.8082,172.12,172.09,5.8088]
[1747390161728,5.8082,172.12,172.06,59.66]
[1747390161929,5.8077,172.13,172.1,5.8084]
[1747390162324,1.8328,172.14,172.06,66.49153673]
[1747390162527,5.8081,172.12,172.06,66.49153673]
[1747390162730,1.8328,172.14,172.06,66.49153673]
[1747390162924,5.8078,172.13,172.06,66.49153673]
[1747390163127,1.8328,172.14,172.06,66.49153673]
[1747390163629,5.8082,172.12,172.09,5.8088]
[1747390165232,5.8084,172.11,172.09,5.8088]
[1747390165436,5.8084,172.11,172.08,5.8092]
[1747390165835,5.8084,172.11,172.09,5.809]
[1747390166029,5.8081,172.12,172.09,5.809]
[1747390166535,5.8083,172.11,172.09,5.809]
[1747390167235,5.8081,172.12,172.09,5.809]
[1747390169042,5.8079,172.13,172.06,66.49153673]
[1747390169336,1.8328,172.14,172.06,66.49153673]
[1747390170133,5.8082,172.12,172.09,5.8089]
[1747390170330,1.8328,172.14,172.06,66.49153673]
[1747390170533,1.8328,172.14,172.07,65.4894]
[1747390171539,5.8086,172.11,172.08,5.8093]
[1747390171741,1.8328,172.14,172.07,59.68]
[1747390172038,5.8082,172.12,172.09,5.8088]
[1747390172238,1.8328,172.14,172.09,5.8088]
[1747390172744,5.8083,172.12,172.09,5.8088]
[1747390173040,1.8328,172.14,172.09,5.8088]
[1747390173241,5.8083,172.12,172.09,5.8088]
[1747390173444,1.8328,172.14,172.09,5.8088]
[1747390173841,5.8085,172.11,172.09,5.8088]
[1747390174143,5.8085,172.11,172.08,5.8092]
[1747390174545,5.8087,172.1,172.08,5.8092]
[1747390174738,1.8328,172.14,172.08,5.8092]
[1747390175143,5.8086,172.11,172.08,5.8092]
[1747390175640,1.8328,172.14,172.03,6.83153673]
[1747390175840,1.8328,172.14,172.06,5.8099]
[1747390176444,59.66,172.13,172.05,5.8103]
[1747390177040,5.8096,172.08,172.05,5.8103]
[1747390178136,5.8097,172.07,172.05,5.8103]
[1747390178344,59.56,172.11,172.03,59.68]
[1747390178637,5.8096,172.08,172.03,59.68]
[1747390178842,5.8096,172.08,172.05,5.8101]
[1747390179041,59.56,172.11,172.05,5.8101]
[1747390179242,5.8096,172.08,172.05,5.8101]
[1747390179442,59.56,172.11,172.05,5.8101]
[1747390179642,59.56,172.11,172.04,5.8104]
[1747390180042,59.56,172.11,172.03,59.68]
[1747390180240,59.56,172.11,172.0,59.68]
[1747390181142,59.56,172.11,171.98,6.83153673]
[1747390181345,59.56,172.11,171.99,59.68]
[1747390181744,5.8111,172.03,171.99,59.68]
[1747390181944,59.56,172.07,171.98,6.83153673]
[1747390182141,59.56,172.07,171.98,66.51153673]
[1747390182340,5.8112,172.03,172.0,5.8117]
[1747390182541,59.56,172.07,172.0,5.8117]
[1747390182741,61.4678,172.07,172.0,5.8117]
[1747390183646,5.8115,172.02,172.0,5.8117]
[1747390183850,61.4678,172.07,172.0,5.8117]
[1747390184146,5.8109,172.04,172.01,5.8116]
[1747390185049,5.8111,172.03,172.01,5.8116]
[1747390185247,5.8111,172.03,172.0,5.8119]
[1747390185850,5.8108,172.04,172.01,5.8117]
[1747390186150,5.8108,172.04,171.98,126.07153673]
[1747390186351,5.8105,172.05,172.02,5.8113]
[1747390186548,5.8105,172.05,171.98,126.07153673]
[1747390187552,5.8105,172.05,172.02,5.8111]
[1747390188445,5.8107,172.04,172.01,5.8116]
[1747390188951,65.2445,172.07,171.98,59.68]
[1747390189246,5.811,172.04,171.98,59.68]
[1747390189750,5.8105,172.05,171.98,59.68]
[1747390189952,65.2445,172.07,171.98,59.68]
[1747390190452,5.8113,172.03,172.0,5.812]
[1747390191147,5.8114,172.02,172.0,5.812]
[1747390191352,5.8114,172.02,171.99,5.8123]
[1747390191552,65.2445,172.07,171.98,59.56]
[1747390192558,5.8109,172.04,172.01,5.8115]
[1747390193849,5.8104,172.05,171.98,59.56]
[1747390194151,6.83153673,172.12,171.98,59.56]
[1747390194152,59.56,172.08,172.0,6.83153673]
[1747390194751,5.8106,172.05,172.02,5.8113]
[1747390195653,5.8107,172.04,172.02,5.8113]
[1747390198055,5.8106,172.05,172.02,5.8113]
[1747390198258,59.56,172.08,172.02,5.8113]
[1747390198453,59.56,172.08,172.03,5.811]
[1747390198655,59.56,172.11,172.02,59.56]
[1747390198849,59.56,172.12,172.02,59.56]
[1747390199249,5.8092,172.09,172.03,6.83153673]
[1747390200066,5.8092,172.09,172.06,5.8098]
[1747390200756,59.56,172.12,172.03,6.83153673]
[1747390200955,203.43532739,172.13,172.03,6.83153673]
[1747390201452,5.8081,172.12,172.09,5.809]
[1747390201953,203.43532739,172.13,172.07,59.56]
[1747390202152,199.73622739,172.13,172.07,59.56]
[1747390202447,197.73152739,172.13,172.07,59.56]
[1747390202654,203.53942739,172.13,172.07,59.56]
[1747390202853,197.73152739,172.13,172.07,59.56]
[1747390204562,197.73152739,172.13,172.1,5.8084]
[1747390206656,203.53922739,172.13,172.1,5.8084]
[1747390207358,197.73152739,172.13,172.11,5.8081]
[1747390208763,197.73152739,172.13,172.1,5.8086]
[1747390215067,197.73152739,172.13,172.11,5.8083]
[1747390219663,197.73152739,172.13,172.12,5.808]
[1747390219862,197.73152739,172.13,172.07,59.56]
[1747390220769,197.73152739,172.13,172.11,5.8082]
[1747390221269,197.73152739,172.13,172.07,59.56]
[1747390222270,197.73152739,172.13,172.12,5.808]
[1747390223172,5.8067,172.16,172.13,5.8075]
[1747390223672,3.7296,172.17,172.11,59.5]
[1747390223872,3.7296,172.17,172.14,5.8071]
[1747390224573,3.7296,172.17,172.13,5.8075]
[1747390224776,5.8067,172.16,172.13,5.8075]
[1747390224974,3.7296,172.17,172.13,5.8075]
[1747390225875,9.536,172.17,172.13,5.8075]
[1747390226473,9.536,172.17,172.14,5.8072]
[1747390227176,9.536,172.17,172.15,5.807]
[1747390227373,3.7296,172.17,172.15,5.807]
[1747390227575,3.7296,172.17,172.11,59.5]
[1747390227772,3.7296,172.17,172.14,5.8071]
[1747390228080,9.5359,172.17,172.14,5.8071]
[1747390230580,9.5359,172.17,172.15,5.807]
[1747390231373,5.8067,172.16,172.11,59.5]
[1747390231773,3.7296,172.17,172.11,59.5]
[1747390231972,9.5361,172.17,172.14,5.8071]
[1747390233172,1.8581,172.18,172.11,59.5]
[1747390233381,3.8295,172.23,172.13,66.33153673]
[1747390233680,5.805,172.21,172.18,5.8058]
[1747390234774,5.8048,172.22,172.19,5.8056]
[1747390237182,5.7439,172.23,172.21,5.8047]
[1747390237383,1.9144,172.23,172.21,5.8047]
[1747390237589,5.8038,172.25,172.17,59.48]
[1747390237978,59.5,172.27,172.19,6.83153673]
[1747390238180,3.8874,172.29,172.22,6.83153673]
[1747390238482,1.9464,172.29,172.22,6.83153673]
[1747390238782,5.8021,172.3,172.26,5.8031]
[1747390239387,59.48,172.32,172.25,65.3036]